fUST/lending_fUST_20240827
["ID","MTS","AMOUNT","RATE_DAILY","PERIOD"]
[336066173,1724688032972,-300.0,9.469e-05,2]
[336066174,1724688038246,-10814.2402934,9.47e-05,2]
[336066175,1724688044428,-8850.44161835,9.524e-05,2]
[336066176,1724688051591,-15607.7654847,9.528e-05,2]
[336066178,1724688072252,-24900.0,9.535e-05,2]
[336066179,1724688139953,-2113.86035463,9.535e-05,2]
[336066180,1724688139989,-161.90697332,9.535e-05,2]
[336066181,1724688140023,-1095.97423083,9.535e-05,2]
[336066182,1724688140058,-16329.96101397,9.535e-05,2]
[336066183,1724688151877,200.0,0.00014544,120]
[336066185,1724688184958,-1010.23989812,9.44e-05,2]
[336066186,1724688193552,-405.69820043,9.535e-05,2]
[336066187,1724688193617,-245.37793569,9.535e-05,2]
[336066188,1724688193669,-1309.86966635,9.535e-05,2]
[336066200,1724688360223,-300.0,9.534e-05,2]
[336066201,1724688360245,-490.42496394,9.535e-05,2]
[336066202,1724688360265,-405.69820043,9.535e-05,2]
[336066203,1724688360286,-158.70110161,9.535e-05,2]
[336066204,1724688360309,-1790.34972278,9.535e-05,2]
[336066205,1724688360330,-16329.96101397,9.535e-05,2]
[336066206,1724688360350,-729.26259975,9.535e-05,2]
[336066207,1724688360372,-158.375741,9.794e-05,2]
[336066208,1724688360394,-158.375741,9.845e-05,2]
[336066209,1724688360415,-158.375741,9.896e-05,2]
[336066210,1724688360437,-2597.51595188,9.899e-05,2]
[336066211,1724688360457,-160.04879061,9.939e-05,2]
[336066212,1724688360480,-158.375741,9.947e-05,2]
[336066213,1724688360502,-158.375741,9.998e-05,2]
[336066214,1724688360524,-158.375741,0.00010049,2]
[336066215,1724688360548,-310.33125327,0.00010056,2]
[336066216,1724688360570,-535.23487752,0.00010081,2]
[336066217,1724688360592,-535.23487752,0.00010081,2]
[336066218,1724688360613,-308.87373714,0.00010081,2]
[336066219,1724688360640,-158.375741,0.000101,2]
[336066220,1724688360662,-158.375741,0.00010151,2]
[336066221,1724688360684,-158.375741,0.00010202,2]
[336066222,1724688360706,-158.375741,0.00010253,2]
[336066223,1724688360728,-4168.97724047,0.0001026,2]
[336066224,1724688360749,-158.375741,0.00010304,2]
[336066225,1724688360770,-420.0,0.00010487,2]
[336066226,1724688360792,-2208.54972757,0.00010858,2]
[336066227,1724688360821,-156.72228598,0.00010858,2]
[336066228,1724688360845,-180.92268934,0.00010958,2]
[336066229,1724688360866,-1001.46796249,0.00010958,2]
[336066230,1724688360888,-500.0,0.00010958,2]
[336066231,1724688360909,-500.0,0.00010958,2]
[336066232,1724688360930,-500.0,0.00010958,2]
[336066233,1724688360951,-500.0,0.00010958,2]
[336066234,1724688360973,-500.0,0.00010958,2]
[336066235,1724688360995,-500.0,0.00010958,2]
[336066236,1724688361016,-500.0,0.00010958,2]
[336066237,1724688361036,-500.0,0.00010958,2]
[336066238,1724688361062,-500.0,0.00010958,2]
[336066239,1724688361082,-500.0,0.00010958,2]
[336066240,1724688361102,-500.0,0.00010958,2]
[336066241,1724688361122,-821.62,0.00010958,2]
[336066242,1724688361143,-872.54,0.00010958,2]
[336066243,1724688361164,-500.0,0.00010958,2]
[336066244,1724688361185,-500.0,0.00010958,2]
[336066245,1724688361206,-594.58425863,0.00010958,2]
[336066246,1724688361227,-500.0,0.00010958,2]
[336066247,1724688361250,-500.0,0.00010958,2]
[336066248,1724688361272,-500.0,0.00010958,2]
[336066249,1724688361295,-500.0,0.00010958,2]
[336066250,1724688361317,-500.0,0.00010958,2]
[336066251,1724688361339,-500.0,0.00010958,2]
[336066252,1724688361362,-500.0,0.00010958,2]
[336066253,1724688361384,-500.0,0.00010958,2]
[336066254,1724688361404,-500.0,0.00010958,2]
[336066255,1724688361428,-500.0,0.00010958,2]
[336066256,1724688361450,-500.0,0.00010958,2]
[336066257,1724688361471,-754.91,0.00010958,2]
[336066258,1724688361492,-500.0,0.00010958,2]
[336066259,1724688361513,-500.0,0.00010958,2]
[336066260,1724688361535,-500.0,0.00010958,2]
[336066261,1724688361561,-509.31,0.00010958,2]
[336066262,1724688361582,-500.0,0.00010958,2]
[336066263,1724688361606,-525.28861664,0.00010958,2]
[336066264,1724688361630,-500.0,0.00010958,2]
[336066265,1724688361654,-500.0,0.00010958,2]
[336066266,1724688361675,-500.0,0.00010958,2]
[336066267,1724688361696,-554.7,0.00010958,2]
[336066268,1724688361717,-500.0,0.00010958,2]
[336066269,1724688361737,-500.0,0.00010958,2]
[336066270,1724688361759,-500.0,0.00010958,2]
[336066271,1724688361779,-519.71,0.00010958,2]
[336066272,1724688361803,-500.0,0.00010958,2]
[336066273,1724688361824,-500.0,0.00010958,2]
[336066274,1724688361846,-610.22,0.00010958,2]
[336066275,1724688361870,-500.0,0.00010958,2]
[336066276,1724688361892,-500.0,0.00010958,2]
[336066277,1724688361914,-500.0,0.00010958,2]
[336066278,1724688361936,-500.0,0.00010958,2]
[336066279,1724688361958,-500.0,0.00010958,2]
[336066280,1724688361979,-500.0,0.00010958,2]
[336066281,1724688362001,-500.0,0.00010958,2]
[336066282,1724688362021,-500.0,0.00010958,2]
[336066283,1724688362044,-500.0,0.00010958,2]
[336066284,1724688362064,-500.0,0.00010958,2]
[336066285,1724688362085,-954.7,0.00010958,2]
[336066286,1724688362107,-500.0,0.00010958,2]
[336066287,1724688362128,-500.0,0.00010958,2]
[336066288,1724688362149,-432.02893867,0.00010958,2]
[336066289,1724688362172,-654.99,0.00010958,2]
[336066290,1724688362195,-500.0,0.00010958,2]
[336066291,1724688362218,-500.0,0.00010958,2]
[336066292,1724688362241,-500.0,0.00010958,2]
[336066293,1724688362263,-500.0,0.00010958,2]
[336066294,1724688362283,-500.0,0.00010958,2]
[336066295,1724688362307,-500.0,0.00010958,2]
[336066296,1724688362537,-500.0,0.00010958,2]
[336066297,1724688362565,-676.74,0.00010958,2]
[336066298,1724688362587,-506.16981024,0.00010958,2]
[336066299,1724688362607,-500.0,0.00010958,2]
[336066300,1724688362630,-500.0,0.00010958,2]
[336066301,1724688362651,-500.0,0.00010958,2]
[336066302,1724688362671,-500.0,0.00010958,2]
[336066303,1724688362692,-542.98,0.00010958,2]
[336066304,1724688362712,-500.0,0.00010958,2]
[336066305,1724688362736,-500.0,0.00010958,2]
[336066306,1724688362757,-500.0,0.00010958,2]
[336066307,1724688362779,-501.37,0.00010958,2]
[336066308,1724688362801,-500.0,0.00010958,2]
[336066309,1724688362820,-269.97377217,0.00010958,2]
[336066310,1724688362842,-689.7,0.00010958,2]
[336066311,1724688362864,-500.0,0.00010958,2]
[336066312,1724688362884,-500.0,0.00010958,2]
[336066313,1724688362905,-562.73,0.00010958,2]
[336066314,1724688362926,-500.0,0.00010958,2]
[336066315,1724688362948,-500.0,0.00010958,2]
[336066316,1724688362970,-500.0,0.00010958,2]
[336066317,1724688362991,-500.0,0.00010958,2]
[336066318,1724688363011,-500.0,0.00010958,2]
[336066319,1724688363032,-567.22,0.00010958,2]
[336066320,1724688363055,-500.0,0.00010958,2]
[336066321,1724688363076,-577.47,0.00010958,2]
[336066322,1724688363098,-500.0,0.00010958,2]
[336066323,1724688363118,-500.0,0.00010958,2]
[336066324,1724688363139,-500.0,0.00010958,2]
[336066325,1724688363159,-500.0,0.00010958,2]
[336066326,1724688363183,-598.66,0.00010958,2]
[336066327,1724688363206,-500.0,0.00010958,2]
[336066328,1724688363230,-500.0,0.00010958,2]
[336066329,1724688363251,-667.03,0.00010958,2]
[336066330,1724688363273,-500.0,0.00010958,2]
[336066331,1724688363297,-500.0,0.00010958,2]
[336066332,1724688363318,-500.0,0.00010958,2]
[336066333,1724688363339,-500.0,0.00010958,2]
[336066334,1724688363361,-500.0,0.00010958,2]
[336066335,1724688363382,-500.0,0.00010958,2]
[336066336,1724688363404,-500.0,0.00010958,2]
[336066337,1724688363425,-500.0,0.00010958,2]
[336066338,1724688363448,-806.43,0.00010958,2]
[336066339,1724688363469,-500.0,0.00010958,2]
[336066340,1724688363492,-500.0,0.00010958,2]
[336066341,1724688363515,-500.0,0.00010958,2]
[336066342,1724688363537,-500.0,0.00010958,2]
[336066343,1724688363570,-500.0,0.00010958,2]
[336066344,1724688363593,-289.00183085,0.00010958,2]
[336066345,1724688363617,-806.76,0.00010958,2]
[336066346,1724688363647,-500.0,0.00010958,2]
[336066347,1724688363670,-500.0,0.00010958,2]
[336066348,1724688363693,-500.0,0.00010958,2]
[336066349,1724688363716,-844.22,0.00010958,2]
[336066350,1724688363739,-500.0,0.00010958,2]
[336066351,1724688363762,-500.0,0.00010958,2]
[336066352,1724688363784,-256.18099808,0.00010958,2]
[336066353,1724688363806,-500.0,0.00010958,2]
[336066354,1724688363828,-500.0,0.00010958,2]
[336066355,1724688363849,-500.0,0.00010958,2]
[336066356,1724688363870,-500.0,0.00010958,2]
[336066357,1724688363892,-500.0,0.00010958,2]
[336066358,1724688363915,-500.0,0.00010958,2]
[336066359,1724688363936,-613.58,0.00010958,2]
[336066360,1724688363957,-500.0,0.00010958,2]
[336066361,1724688363977,-500.0,0.00010958,2]
[336066362,1724688363999,-500.0,0.00010958,2]
[336066363,1724688364020,-500.0,0.00010958,2]
[336066364,1724688364040,-500.0,0.00010958,2]
[336066365,1724688364062,-500.0,0.00010958,2]
[336066366,1724688364083,-717.75,0.00010958,2]
[336066367,1724688364105,-500.0,0.00010958,2]
[336066368,1724688364126,-500.0,0.00010958,2]
[336066369,1724688364147,-500.0,0.00010958,2]
[336066370,1724688364171,-500.0,0.00010958,2]
[336066371,1724688364193,-603.23430075,0.00010958,2]
[336066372,1724688364215,-500.0,0.00010958,2]
[336066373,1724688364236,-673.76,0.00010958,2]
[336066374,1724688364258,-500.0,0.00010958,2]
[336066375,1724688364280,-500.0,0.00010958,2]
[336066376,1724688364304,-500.0,0.00010958,2]
[336066377,1724688364325,-525.71,0.00010958,2]
[336066378,1724688364347,-255.82773292,0.00010958,2]
[336066379,1724688364369,-500.0,0.00010958,2]
[336066380,1724688364391,-500.0,0.00010958,2]
[336066381,1724688364413,-503.74,0.00010958,2]
[336066382,1724688364435,-500.0,0.00010958,2]
[336066383,1724688364456,-500.0,0.00010958,2]
[336066384,1724688364478,-507.12,0.00010958,2]
[336066385,1724688364500,-500.0,0.00010958,2]
[336066386,1724688364522,-500.0,0.00010958,2]
[336066387,1724688364544,-500.0,0.00010958,2]
[336066388,1724688364567,-500.0,0.00010958,2]
[336066389,1724688364589,-500.0,0.00010958,2]
[336066390,1724688364610,-816.88,0.00010958,2]
[336066391,1724688364635,-500.0,0.00010958,2]
[336066392,1724688364657,-644.29,0.00010958,2]
[336066393,1724688364678,-500.0,0.00010958,2]
[336066394,1724688364699,-500.0,0.00010958,2]
[336066395,1724688364721,-500.0,0.00010958,2]
[336066396,1724688364743,-500.0,0.00010958,2]
[336066397,1724688364768,-500.0,0.00010958,2]
[336066398,1724688364789,-500.0,0.00010958,2]
[336066399,1724688364811,-500.0,0.00010958,2]
[336066400,1724688364832,-500.0,0.00010958,2]
[336066401,1724688364856,-500.0,0.00010958,2]
[336066402,1724688364878,-500.0,0.00010958,2]
[336066403,1724688364898,-500.0,0.00010958,2]
[336066404,1724688364920,-500.0,0.00010958,2]
[336066405,1724688364944,-500.0,0.00010958,2]
[336066406,1724688364967,-493.13003002,0.00010958,2]
[336066407,1724688364988,-500.0,0.00010958,2]
[336066408,1724688365009,-500.0,0.00010958,2]
[336066409,1724688365030,-500.0,0.00010958,2]
[336066410,1724688365052,-243.66268991,0.00010958,2]
[336066411,1724688365072,-500.0,0.00010958,2]
[336066412,1724688365092,-500.0,0.00010958,2]
[336066413,1724688365113,-500.0,0.00010958,2]
[336066414,1724688365135,-500.0,0.00010958,2]
[336066415,1724688365156,-500.0,0.00010958,2]
[336066416,1724688365176,-500.0,0.00010958,2]
[336066417,1724688365197,-500.0,0.00010958,2]
[336066418,1724688365217,-500.0,0.00010958,2]
[336066419,1724688365237,-500.73897353,0.00010958,2]
[336066420,1724688365257,-500.0,0.00010958,2]
[336066421,1724688365277,-500.0,0.00010958,2]
[336066422,1724688365298,-500.0,0.00010958,2]
[336066423,1724688365317,-500.0,0.00010958,2]
[336066424,1724688365338,-500.0,0.00010958,2]
[336066425,1724688365359,-500.0,0.00010958,2]
[336066426,1724688365380,-500.0,0.00010958,2]
[336066427,1724688365400,-500.0,0.00010958,2]
[336066428,1724688365422,-500.0,0.00010958,2]
[336066429,1724688365443,-500.0,0.00010958,2]
[336066430,1724688365465,-500.0,0.00010958,2]
[336066431,1724688365485,-500.0,0.00010958,2]
[336066432,1724688365506,-500.0,0.00010958,2]
[336066433,1724688365528,-500.0,0.00010958,2]
[336066434,1724688365551,-500.0,0.00010958,2]
[336066435,1724688365573,-500.0,0.00010958,2]
[336066436,1724688365595,-674.17,0.00010958,2]
[336066437,1724688365616,-500.0,0.00010958,2]
[336066438,1724688365640,-500.0,0.00010958,2]
[336066439,1724688365663,-500.0,0.00010958,2]
[336066440,1724688365684,-500.0,0.00010958,2]
[336066441,1724688365705,-500.0,0.00010958,2]
[336066442,1724688365727,-500.0,0.00010958,2]
[336066443,1724688365750,-618.56926949,0.00010958,2]
[336066444,1724688365774,-500.0,0.00010958,2]
[336066445,1724688365794,-500.0,0.00010958,2]
[336066446,1724688365819,-1311.55,0.00010958,2]
[336066447,1724688365842,-500.0,0.00010958,2]
[336066448,1724688365864,-500.0,0.00010958,2]
[336066449,1724688365885,-500.0,0.00010958,2]
[336066450,1724688365906,-500.0,0.00010958,2]
[336066451,1724688365928,-619.38,0.00010958,2]
[336066452,1724688365951,-500.0,0.00010958,2]
[336066453,1724688365975,-707.42,0.00010958,2]
[336066454,1724688365995,-500.0,0.00010958,2]
[336066455,1724688366017,-500.0,0.00010958,2]
[336066456,1724688366037,-500.0,0.00010958,2]
[336066457,1724688366059,-500.0,0.00010958,2]
[336066458,1724688366079,-500.0,0.00010958,2]
[336066459,1724688366099,-500.0,0.00010958,2]
[336066460,1724688366120,-500.0,0.00010958,2]
[336066461,1724688366141,-500.0,0.00010958,2]
[336066462,1724688366161,-845.31,0.00010958,2]
[336066463,1724688366180,-500.0,0.00010958,2]
[336066464,1724688366201,-596.5,0.00010958,2]
[336066465,1724688366222,-519.32,0.00010958,2]
[336066466,1724688366243,-500.0,0.00010958,2]
[336066467,1724688366265,-500.0,0.00010958,2]
[336066468,1724688366287,-874.57,0.00010958,2]
[336066469,1724688366310,-500.0,0.00010958,2]
[336066470,1724688366332,-500.0,0.00010958,2]
[336066471,1724688366353,-500.0,0.00010958,2]
[336066472,1724688366375,-500.0,0.00010958,2]
[336066473,1724688366576,-500.0,0.00010958,2]
[336066474,1724688366602,-500.0,0.00010958,2]
[336066475,1724688366629,-500.0,0.00010958,2]
[336066476,1724688366653,-500.0,0.00010958,2]
[336066477,1724688366674,-500.0,0.00010958,2]
[336066478,1724688366695,-500.0,0.00010958,2]
[336066479,1724688366715,-500.0,0.00010958,2]
[336066480,1724688366736,-500.0,0.00010958,2]
[336066481,1724688366757,-500.0,0.00010958,2]
[336066482,1724688366777,-500.0,0.00010958,2]
[336066483,1724688366797,-500.0,0.00010958,2]
[336066484,1724688366826,-713.1,0.00010958,2]
[336066485,1724688366847,-500.0,0.00010958,2]
[336066486,1724688366872,-937.68,0.00010958,2]
[336066487,1724688366894,-500.0,0.00010958,2]
[336066488,1724688366922,-500.0,0.00010958,2]
[336066489,1724688366942,-500.0,0.00010958,2]
[336066490,1724688366963,-996.63,0.00010958,2]
[336066491,1724688366985,-500.0,0.00010958,2]
[336066492,1724688367007,-500.0,0.00010958,2]
[336066493,1724688367029,-572.34,0.00010958,2]
[336066494,1724688367060,-934.87,0.00010958,2]
[336066495,1724688367081,-934.87,0.00010958,2]
[336066496,1724688367102,-934.87,0.00010958,2]
[336066497,1724688367124,-934.87,0.00010958,2]
[336066498,1724688367145,-500.0,0.00010958,2]
[336066499,1724688367165,-500.0,0.00010958,2]
[336066500,1724688367185,-514.21811915,0.00010958,2]
[336066501,1724688367205,-500.0,0.00010958,2]
[336066502,1724688367227,-500.0,0.00010958,2]
[336066503,1724688367248,-866.39,0.00010958,2]
[336066504,1724688367269,-500.0,0.00010958,2]
[336066505,1724688367289,-500.0,0.00010958,2]
[336066506,1724688367313,-500.0,0.00010958,2]
[336066507,1724688367334,-500.0,0.00010958,2]
[336066508,1724688367355,-500.0,0.00010958,2]
[336066509,1724688367376,-500.0,0.00010958,2]
[336066510,1724688367396,-748.73,0.00010958,2]
[336066511,1724688367417,-500.0,0.00010958,2]
[336066512,1724688367439,-657.23,0.00010958,2]
[336066513,1724688367462,-595.04,0.00010958,2]
[336066514,1724688367484,-500.0,0.00010958,2]
[336066515,1724688367505,-628.42,0.00010958,2]
[336066516,1724688367526,-500.0,0.00010958,2]
[336066517,1724688367551,-500.0,0.00010958,2]
[336066518,1724688367575,-526.6,0.00010958,2]
[336066519,1724688367598,-500.0,0.00010958,2]
[336066520,1724688367618,-500.0,0.00010958,2]
[336066521,1724688367641,-873.87,0.00010958,2]
[336066522,1724688367661,-500.0,0.00010958,2]
[336066523,1724688367681,-500.0,0.00010958,2]
[336066524,1724688367701,-500.0,0.00010958,2]
[336066525,1724688367723,-547.07,0.00010958,2]
[336066526,1724688367744,-643.01,0.00010958,2]
[336066527,1724688367765,-500.0,0.00010958,2]
[336066528,1724688367786,-500.0,0.00010958,2]
[336066529,1724688367811,-557.06,0.00010958,2]
[336066530,1724688367832,-682.0,0.00010958,2]
[336066531,1724688367853,-500.0,0.00010958,2]
[336066532,1724688367874,-500.0,0.00010958,2]
[336066533,1724688367895,-500.0,0.00010958,2]
[336066534,1724688367916,-500.0,0.00010958,2]
[336066535,1724688367936,-299.11450768,0.00010958,2]
[336066536,1724688391925,200.0,0.00016699,120]
[336066537,1724688436421,-300.0,0.00010957,2]
[336066538,1724688436444,-155.25128299,0.00010958,2]
[336066539,1724688436469,-266.66029739,0.00010958,2]
[336066540,1724688436490,-200.88549232,0.00010958,2]
[336066541,1724688436510,-243.7832543,0.00010958,2]
[336066542,1724688436533,-500.0,0.00010958,2]
[336066543,1724688436555,-1843.48,0.00010958,2]
[336066544,1724688436579,-595.12177706,0.00010958,2]
[336066545,1724688436608,-75.79955268,0.00010958,2]
[336066546,1724688439875,-398.66003633,0.00010739,2]
[336066547,1724688439898,-424.20044732,0.00010958,2]
[336066548,1724688439920,-664.95,0.00010958,2]
[336066549,1724688439945,-612.40174002,0.00010958,2]
[336066550,1724688440267,-1001.29825998,0.00010958,2]
[336066551,1724688440289,-746.13,0.00010958,2]
[336066552,1724688440311,-500.0,0.00010958,2]
[336066553,1724688440333,-500.0,0.00010958,2]
[336066554,1724688440360,-562.55007817,0.00010958,2]
[336066555,1724688443167,-31.33992183,0.00010958,2]
[336066556,1724688443190,-500.0,0.00010958,2]
[336066557,1724688443212,-500.0,0.00010958,2]
[336066558,1724688443234,-902.92,0.00010958,2]
[336066559,1724688443255,-500.0,0.00010958,2]
[336066560,1724688443277,-163.16364678,0.00010958,2]
[336066561,1724688451355,200.0,0.00018011,120]
[336066562,1724688511331,200.0,0.00018149,120]
[336066564,1724688552095,-24573.17028482,9.933e-05,2]
[336066565,1724688554169,-326.82971518,9.933e-05,2]
[336066566,1724688554192,-160.04879061,0.00010739,2]
[336066567,1724688554212,-310.33125327,0.00010858,2]
[336066568,1724688554232,-156.72228598,0.00010858,2]
[336066569,1724688554253,-300.0,0.00010957,2]
[336066570,1724688554273,-2597.51595188,0.00010958,2]
[336066571,1724688554293,-180.92268934,0.00010958,2]
[336066572,1724688554313,-165.61225711,0.00010958,2]
[336066573,1724688554334,-308.87373714,0.00010958,2]
[336066574,1724688554355,-4168.97724047,0.00010958,2]
[336066575,1724688554376,-449.02204913,0.00010958,2]
[336066576,1724688554398,-155.03345781,0.00010958,2]
[336066577,1724688554419,-1001.46796249,0.00010958,2]
[336066578,1724688554440,-535.23487752,0.00010958,2]
[336066579,1724688554462,-336.83635322,0.00010958,2]
[336066580,1724688554482,-500.0,0.00010958,2]
[336066581,1724688554504,-500.0,0.00010958,2]
[336066582,1724688554525,-358.58189356,0.00010958,2]
[336066583,1724688554545,-500.0,0.00010958,2]
[336066584,1724688554566,-507.06596383,0.00010958,2]
[336066585,1724688554588,-500.0,0.00010958,2]
[336066586,1724688554608,-500.0,0.00010958,2]
[336066587,1724688554844,-500.0,0.00010958,2]
[336066588,1724688554867,-500.0,0.00010958,2]
[336066589,1724688554890,-500.0,0.00010958,2]
[336066590,1724688554911,-502.64694305,0.00010958,2]
[336066591,1724688554934,-500.0,0.00010958,2]
[336066592,1724688554956,-500.0,0.00010958,2]
[336066593,1724688554979,-524.56,0.00010958,2]
[336066594,1724688555000,-500.0,0.00010958,2]
[336066595,1724688555021,-595.54,0.00010958,2]
[336066596,1724688555043,-663.47,0.00010958,2]
[336066597,1724688555064,-500.0,0.00010958,2]
[336066598,1724688555084,-756.88,0.00010958,2]
[336066599,1724688555106,-500.0,0.00010958,2]
[336066600,1724688555129,-551.36,0.00010958,2]
[336066601,1724688555151,-500.0,0.00010958,2]
[336066602,1724688555174,-1088.92,0.00010958,2]
[336066603,1724688555195,-500.0,0.00010958,2]
[336066604,1724688555218,-500.0,0.00010958,2]
[336066605,1724688555239,-443.21453025,0.00010958,2]
[336066606,1724688555260,-500.0,0.00010958,2]
[336066607,1724688555281,-163.41330039,0.00010958,2]
[336066608,1724688555302,-500.0,0.00010958,2]
[336066609,1724688555322,-500.0,0.00010958,2]
[336066610,1724688555343,-500.0,0.00010958,2]
[336066611,1724688555364,-500.0,0.00010958,2]
[336066612,1724688555385,-500.0,0.00010958,2]
[336066613,1724688555406,-500.0,0.00010958,2]
[336066614,1724688555428,-557.8,0.00010958,2]
[336066615,1724688555449,-500.0,0.00010958,2]
[336066616,1724688555471,-500.0,0.00010958,2]
[336066617,1724688555492,-500.0,0.00010958,2]
[336066618,1724688555514,-510.91,0.00010958,2]
[336066619,1724688555535,-500.0,0.00010958,2]
[336066620,1724688555556,-500.0,0.00010958,2]
[336066621,1724688555577,-500.0,0.00010958,2]
[336066622,1724688555598,-500.0,0.00010958,2]
[336066623,1724688555622,-500.0,0.00010958,2]
[336066624,1724688555644,-500.0,0.00010958,2]
[336066625,1724688555668,-500.0,0.00010958,2]
[336066626,1724688555689,-500.0,0.00010958,2]
[336066627,1724688555713,-540.83,0.00010958,2]
[336066628,1724688555735,-1509.37,0.00010958,2]
[336066629,1724688555759,-500.0,0.00010958,2]
[336066630,1724688555780,-737.9,0.00010958,2]
[336066631,1724688555801,-500.0,0.00010958,2]
[336066632,1724688555823,-500.32335848,0.00010958,2]
[336066633,1724688555845,-877.81,0.00010958,2]
[336066634,1724688555866,-500.0,0.00010958,2]
[336066635,1724688555888,-500.0,0.00010958,2]
[336066636,1724688555909,-741.78,0.00010958,2]
[336066637,1724688555931,-500.0,0.00010958,2]
[336066638,1724688555954,-1175.99,0.00010958,2]
[336066639,1724688555976,-909.81,0.00010958,2]
[336066640,1724688555998,-500.0,0.00010958,2]
[336066641,1724688556020,-500.0,0.00010958,2]
[336066642,1724688556042,-500.0,0.00010958,2]
[336066643,1724688556064,-500.0,0.00010958,2]
[336066644,1724688556084,-500.0,0.00010958,2]
[336066645,1724688556104,-500.0,0.00010958,2]
[336066646,1724688556126,-797.11,0.00010958,2]
[336066647,1724688556147,-500.0,0.00010958,2]
[336066648,1724688556168,-500.0,0.00010958,2]
[336066649,1724688556191,-1345.42,0.00010958,2]
[336066650,1724688556212,-500.0,0.00010958,2]
[336066651,1724688556233,-500.0,0.00010958,2]
[336066652,1724688556254,-500.0,0.00010958,2]
[336066653,1724688556276,-511.75,0.00010958,2]
[336066654,1724688556297,-500.0,0.00010958,2]
[336066655,1724688556318,-500.0,0.00010958,2]
[336066656,1724688556342,-500.0,0.00010958,2]
[336066657,1724688556362,-1007.38,0.00010958,2]
[336066658,1724688556383,-500.0,0.00010958,2]
[336066659,1724688556404,-500.0,0.00010958,2]
[336066660,1724688556425,-500.0,0.00010958,2]
[336066661,1724688556447,-500.0,0.00010958,2]
[336066662,1724688556469,-500.0,0.00010958,2]
[336066663,1724688556490,-500.0,0.00010958,2]
[336066664,1724688556512,-500.0,0.00010958,2]
[336066665,1724688556534,-675.17,0.00010958,2]
[336066666,1724688556555,-500.0,0.00010958,2]
[336066667,1724688556577,-120.72531,0.00010958,2]
[336066668,1724688568232,-733.34393152,0.00010544,2]
[336066669,1724688568254,-309.55051509,0.00010739,2]
[336066670,1724688568275,-379.27469,0.00010958,2]
[336066671,1724688568298,-500.0,0.00010958,2]
[336066672,1724688568319,-500.0,0.00010958,2]
[336066673,1724688568339,-500.0,0.00010958,2]
[336066674,1724688568361,-500.0,0.00010958,2]
[336066675,1724688568381,-500.0,0.00010958,2]
[336066676,1724688568403,-500.0,0.00010958,2]
[336066677,1724688568425,-500.0,0.00010958,2]
[336066678,1724688568452,-500.0,0.00010958,2]
[336066679,1724688568481,-796.81,0.00010958,2]
[336066680,1724688568504,-500.0,0.00010958,2]
[336066681,1724688568528,-500.0,0.00010958,2]
[336066682,1724688568550,-500.0,0.00010958,2]
[336066683,1724688568572,-500.0,0.00010958,2]
[336066684,1724688568595,-500.0,0.00010958,2]
[336066685,1724688568618,-502.69866046,0.00010958,2]
[336066686,1724688568649,-714.78,0.00010958,2]